bitfinex-derivatives/quotes_ETHF0:USTF0_20250114
["timestamp","ask_amount","ask_price","bid_price","bid_amount"]
[1736850133868,6.2539,3230.8,3230.1,2.43597743]
[1736850134064,5.2792,3230.8,3230.7,0.30959]
[1736850134262,3.2078,3230.8,3230.7,0.30959]
[1736850134565,0.30956,3231.1,3230.5,4.87195486]
[1736850134760,0.30956,3231.1,3231.0,43.54554743]
[1736850134969,3.2078,3231.2,3231.1,0.30956]
[1736850135165,0.988,3231.5,3231.4,0.30953]
[1736850135365,0.30951,3231.6,3231.5,0.30952]
[1736850135567,4.1825,3231.7,3231.4,2.43597743]
[1736850135868,0.30952,3231.5,3231.4,2.74550743]
[1736850136271,0.30952,3231.5,3231.4,40.8]
[1736850137369,4.1825,3231.7,3231.4,43.23597743]
[1736850137571,0.30951,3231.6,3231.4,43.23597743]
[1736850137771,4.1825,3231.7,3231.4,43.23597743]
[1736850138071,0.30951,3231.6,3231.4,43.54550743]
[1736850138466,0.30951,3231.6,3231.4,43.23597743]
[1736850138667,4.1825,3231.7,3231.4,40.8]
[1736850138668,0.30952,3231.5,3231.4,40.8]
[1736850139269,0.30951,3231.6,3231.4,40.8]
[1736850139864,0.30951,3231.6,3231.4,41.10953]
[1736850140379,0.30951,3231.6,3231.4,40.8]
[1736850140568,0.30952,3231.5,3231.4,40.8]
[1736850140968,0.30951,3231.6,3231.4,40.8]
[1736850142374,4.1825,3231.7,3231.4,40.8]
[1736850142574,0.30951,3231.6,3231.4,40.8]
[1736850142872,0.30952,3231.5,3231.4,40.8]
[1736850143073,1.35042,3231.5,3231.4,40.8]
[1736850146776,1.0409,3231.5,3231.4,41.10953]
[1736850147471,1.35042,3231.5,3231.4,40.8]
[1736850147670,1.0409,3231.5,3231.4,40.8]
[1736850147881,1.0409,3231.5,3231.4,41.10953]
[1736850148177,1.35042,3231.5,3231.4,40.8]
[1736850148375,1.35042,3231.5,3231.4,41.10953]
[1736850148874,4.1825,3231.7,3231.4,43.23597743]
[1736850149174,4.1825,3231.7,3231.5,0.30951]
[1736850149175,0.30951,3231.6,3231.5,0.30951]
[1736850149377,0.30952,3231.5,3231.4,40.8]
[1736850149976,0.30952,3231.5,3231.4,41.10953]
[1736850150477,0.30952,3231.5,3231.4,40.8]
[1736850150674,0.30952,3231.5,3231.4,41.10953]
[1736850151075,0.30951,3231.6,3231.5,0.30951]
[1736850151274,4.1825,3231.7,3231.6,0.30951]
[1736850151275,4.492,3231.7,3231.6,0.30951]
[1736850152876,2.68799592,3231.7,3231.6,0.30951]
[1736850154676,1.0013,3231.8,3231.4,43.23597743]
[1736850154877,1.0364,3231.9,3231.8,0.30949]
[1736850155883,1.34588,3231.9,3231.8,0.30949]
[1736850156087,1.34588,3231.9,3231.8,41.10949]
[1736850156280,1.0364,3231.9,3231.8,41.10949]
[1736850159391,1.0364,3231.9,3231.8,40.8]
[1736850159591,1.34588,3231.9,3231.8,41.10949]
[1736850159995,1.34588,3231.9,3231.8,40.8]
[1736850160289,0.77373,3231.8,3231.3,3.2078]
[1736850160591,0.30953,3231.4,3231.3,3.51733]
[1736850161286,0.30953,3231.4,3231.3,44.31733]
[1736850162889,0.30953,3231.4,3231.3,41.10953]
[1736850164293,0.30953,3231.4,3231.3,40.8]
[1736850164482,5.64377743,3231.5,3230.5,2.43597743]
[1736850164688,3.2078,3231.0,3230.5,2.43597743]
[1736850164988,0.3096,3230.6,3230.5,2.74557743]
[1736850165189,0.30963,3230.4,3230.3,0.30962]
[1736850165392,0.77397,3230.8,3230.2,4.73987743]
[1736850165393,0.30963,3230.3,3230.2,1.63964]
[1736850165590,0.30963,3230.3,3230.2,40.8]
[1736850173097,0.55801661,3230.3,3230.2,40.8]
[1736850173293,0.30963,3230.3,3230.2,40.8]
[1736850174093,1.30573,3230.3,3230.2,40.8]
[1736850175490,0.30963,3230.3,3230.2,40.8]
[1736850175796,3.2078,3231.7,3230.2,55.20975486]
[1736850175997,3.2078,3231.7,3231.3,2.43597743]
[1736850176196,3.2078,3231.7,3231.0,2.43597743]
[1736850176393,2.1391,3231.9,3231.0,2.43597743]
[1736850176394,3.51734,3231.3,3231.0,2.43597743]
[1736850176599,3.2078,3231.3,3231.2,40.8]
[1736850177999,3.2078,3231.3,3231.2,41.10954]
[1736850179399,3.2078,3231.7,3231.6,0.30951]
[1736850179593,3.2078,3231.7,3231.6,2.74548743]
[1736850179798,2.1391,3231.9,3231.6,2.74548743]
[1736850179799,2.1391,3231.9,3231.8,0.30949]
[1736850179998,0.002,3232.0,3231.9,0.30948]
[1736850180609,0.002,3232.0,3231.9,41.10948]
[1736850180797,0.002,3232.0,3231.9,43.54545743]
[1736850181903,0.002,3232.0,3231.9,41.10948]
[1736850183297,0.002,3232.0,3231.9,42.08218]
[1736850183499,3.2078,3232.9,3232.8,0.30939]
[1736850183899,3.51718,3232.9,3232.8,0.30939]
[1736850184197,3.51718,3232.9,3232.8,41.10939]
[1736850184398,3.2078,3232.9,3232.8,41.10939]
[1736850188305,3.2078,3233.1,3232.8,40.8]
[1736850188606,3.2078,3233.1,3233.0,2.74534743]
[1736850189904,3.51717,3233.1,3232.8,40.8]
[1736850190104,3.51717,3233.1,3232.8,41.10938]
[1736850190405,3.2078,3233.1,3232.8,40.8]
[1736850190602,3.51716,3233.1,3232.8,41.10938]
[1736850190808,3.51716,3233.1,3232.8,40.8]
[1736850191006,3.2078,3233.1,3233.0,0.30937]
[1736850191311,3.2078,3233.1,3233.0,2.74534743]
[1736850191509,3.51712,3233.6,3233.0,2.43597743]
[1736850191706,3.51712,3233.6,3233.4,2.74530743]
[1736850191907,0.30932,3233.5,3233.4,2.74530743]
[1736850192211,0.30932,3233.5,3233.4,2.43597743]
[1736850192811,3.51712,3233.6,3233.4,2.74530743]
[1736850193009,3.2078,3233.6,3233.4,2.74530743]
[1736850193311,3.51712,3233.6,3233.4,2.74530743]
[1736850193508,3.2078,3233.6,3233.5,0.30932]
[1736850194208,3.2078,3234.0,3233.9,0.30929]
[1736850195115,3.2078,3234.4,3234.3,0.30925]
[1736850195313,1.0584,3234.7,3234.3,2.43597743]
[1736850195807,1.36762,3234.7,3234.5,0.30923]
[1736850196012,1.0584,3234.7,3234.6,0.30922]
[1736850196812,1.0584,3234.7,3234.4,40.8]
[1736850197016,0.30923,3234.6,3234.4,41.10923]
[1736850197217,1.37033,3234.6,3234.4,41.10923]
[1736850197416,1.1253,3234.5,3234.4,40.8]
[1736850197715,1.43453,3234.5,3234.4,40.8]
[1736850198114,0.30924,3234.4,3234.2,0.30926]
[1736850198317,3.51704,3234.4,3234.2,0.30926]
[1736850198517,3.51704,3234.4,3234.2,41.10926]
[1736850198907,3.2078,3234.4,3234.3,2.43597743]
[1736850199115,3.2078,3234.4,3234.3,2.74522743]
[1736850199313,3.51704,3234.4,3234.3,2.43597743]
[1736850199516,3.2078,3234.4,3234.3,2.74522743]
[1736850200114,3.51704,3234.4,3234.3,2.43597743]
[1736850200508,3.51704,3234.4,3234.3,2.74522743]
[1736850200918,3.2078,3234.4,3234.3,2.74522743]
[1736850201118,3.2078,3234.4,3234.3,2.43597743]
[1736850201322,3.51704,3234.4,3234.3,2.43597743]
[1736850203121,3.2078,3234.4,3234.3,2.74522743]
[1736850203320,3.2078,3234.4,3234.3,2.43597743]
[1736850203519,3.51704,3234.4,3234.3,2.43597743]
[1736850203915,3.2078,3234.4,3234.2,40.8]
[1736850204119,0.30925,3234.3,3234.2,40.8]
[1736850204819,0.30925,3234.3,3234.2,41.10926]
[1736850205618,0.30925,3234.3,3233.7,2.43597743]
[1736850205822,3.56127743,3234.5,3233.4,2.43597743]
[1736850205823,0.30931,3233.7,3233.4,2.43597743]
[1736850206029,3.2078,3234.0,3233.4,2.43597743]
[1736850206030,2.49912,3234.0,3233.4,2.43597743]
[1736850206220,0.0038356,3234.6,3234.5,0.30923]
[1736850206424,3.2078,3235.4,3234.5,3.2078]
[1736850206721,3.2078,3235.4,3234.9,2.43597743]
[1736850206926,0.30917,3235.2,3235.0,40.8]
[1736850207225,3.2078,3235.4,3235.0,40.8]
[1736850207427,1.0513,3235.1,3235.0,41.10918]
[1736850210828,1.0513,3235.1,3235.0,40.8]
[1736850211026,1.0513,3235.1,3232.8,15.46958]
[1736850211027,1.0513,3235.1,3234.2,2.43597743]
[1736850211331,0.77308,3234.5,3233.8,2.43597743]
[1736850211525,1.34344,3234.4,3234.3,40.8]
[1736850211721,5.01512,3234.4,3233.7,3.5171]
[1736850211930,5.01512,3234.4,3233.8,0.30929]
[1736850212127,0.30927,3234.1,3233.9,0.30929]
[1736850212320,1.0296,3234.0,3233.9,0.30929]
[1736850212835,1.0296,3234.0,3233.9,41.10929]
[1736850213323,1.0342,3234.4,3233.9,41.10929]
[1736850213523,1.0342,3234.4,3234.3,0.30925]
[1736850215124,1.0296,3234.7,3234.6,0.30922]
[1736850215833,1.0296,3234.7,3234.6,41.10922]
[1736850216231,1.33881,3234.7,3234.6,40.8]
[1736850216630,1.33881,3234.7,3234.6,41.10922]
[1736850217031,1.33881,3234.7,3234.6,40.8]
[1736850217229,1.33881,3234.7,3234.6,41.10922]
[1736850217435,1.0296,3234.7,3234.6,41.10922]
[1736850217634,1.33881,3234.7,3234.6,41.10922]
[1736850218041,1.33881,3234.7,3234.6,40.8]
[1736850223039,1.0296,3234.7,3234.6,43.54519743]
[1736850223240,0.35536121,3236.7,3235.3,0.5]
[1736850223434,3.2078,3236.9,3235.9,2.43597743]
[1736850223732,2.43597743,3237.1,3235.3,0.5]
[1736850223733,3.2078,3236.1,3235.3,5.64377743]
[1736850223932,0.30911,3235.8,3235.4,0.30914]
[1736850224131,1.0928,3235.7,3235.3,5.64377743]
[1736850224336,1.40192,3235.7,3235.4,40.8]
[1736850224637,1.0928,3235.7,3235.4,40.8]
[1736850224832,0.30913,3235.5,3235.4,40.8]
[1736850225137,3.51693,3235.6,3235.4,40.8]
[1736850225334,0.30913,3235.5,3235.4,40.8]
[1736850225536,3.51693,3235.6,3235.4,40.8]
[1736850225935,0.30913,3235.5,3235.4,40.8]
[1736850226941,3.2078,3235.6,3235.0,2.43597743]
[1736850227444,3.2078,3235.6,3235.1,40.8]
[1736850227740,0.30915,3235.4,3235.1,41.10917]
[1736850228244,1.0927,3235.3,3235.1,41.10917]
[1736850228446,1.0927,3235.3,3235.2,0.30916]
[1736850229240,1.0927,3235.3,3235.2,41.10916]
[1736850235044,3.2078,3235.6,3235.5,0.30913]
[1736850235240,3.2078,3235.6,3235.5,2.60818633]
[1736850235633,3.51692,3235.6,3235.5,2.74510743]
[1736850235839,3.2078,3235.6,3235.5,2.74510743]
[1736850236142,3.51692,3235.6,3235.5,2.74510743]
[1736850236344,3.51692,3235.6,3235.5,2.43597743]
[1736850237044,3.2078,3235.6,3235.5,2.43597743]
[1736850237244,1.0928,3235.7,3235.5,2.43597743]
[1736850237445,0.30912,3235.6,3235.5,2.74510743]
[1736850238239,1.0928,3235.7,3235.5,2.74510743]
[1736850238448,1.0928,3235.7,3235.5,2.43597743]
[1736850238449,0.30912,3235.6,3235.5,2.43597743]
[1736850240244,0.30915,3235.4,3235.2,46.75293743]
[1736850240441,0.30915,3235.3,3235.2,46.75293743]
[1736850240739,4.3006,3235.7,3235.2,46.75293743]
[1736850240935,0.30915,3235.3,3235.2,46.75293743]
[1736850241843,0.30915,3235.4,3235.2,46.44377743]
[1736850242145,1.0928,3235.7,3235.2,46.44377743]
[1736850242539,0.30915,3235.3,3235.2,43.23597743]
[1736850243143,0.30915,3235.3,3235.2,43.54513743]
[1736850243646,1.0928,3235.7,3235.2,43.23597743]
[1736850243945,1.0928,3235.7,3235.6,2.43597743]
[1736850244148,1.40192,3235.7,3235.6,2.74510743]
[1736850244349,1.40192,3235.7,3235.6,2.43597743]
[1736850247151,1.40192,3235.7,3235.6,2.74510743]
[1736850247449,1.40192,3235.7,3235.6,2.43597743]
[1736850248342,0.30915,3235.3,3235.2,44.0078]
[1736850248544,0.30915,3235.3,3235.2,40.8]
[1736850250552,4.3006,3235.7,3234.8,5.64377743]
[1736850250744,0.30919,3234.9,3234.8,5.64377743]
[1736850251045,0.30919,3234.9,3234.8,46.44377743]
[1736850251246,0.30919,3234.9,3234.8,44.0078]
[1736850252649,0.30919,3234.9,3234.8,44.317]
[1736850252951,0.30919,3234.9,3234.8,44.0078]
[1736850255948,0.30919,3234.9,3234.8,44.317]
[1736850256347,0.30919,3234.9,3234.8,44.0078]
[1736850256752,0.30919,3234.9,3234.8,44.317]
[1736850257553,0.30919,3234.9,3234.8,44.0078]
[1736850259045,0.30919,3234.9,3234.8,40.8]
[1736850260457,0.30919,3234.9,3234.8,41.1092]
[1736850261753,0.30919,3234.9,3234.8,40.8]
[1736850262645,4.3065,3235.0,3234.2,3.2078]
[1736850262848,0.30925,3234.3,3234.2,3.2078]
[1736850263251,0.77302,3234.8,3234.2,3.2078]
[1736850263457,0.30925,3234.3,3234.2,3.51706]
[1736850263749,0.30925,3234.3,3234.2,44.0078]
[1736850264557,0.30925,3234.3,3234.2,44.31706]
[1736850265260,2.2766,3234.4,3234.3,0.30925]
[1736850265957,2.2766,3234.4,3234.3,41.10925]
[1736850266353,2.58584,3234.4,3234.3,41.10925]
[1736850267056,2.2766,3234.4,3234.3,41.10925]
[1736850267263,2.58584,3234.4,3234.3,41.10925]
[1736850268860,2.58584,3234.4,3234.3,40.8]
[1736850269164,2.58584,3234.4,3234.3,41.10925]
[1736850270365,2.58584,3234.4,3234.3,40.8]
[1736850275471,3.2078,3235.9,3234.3,49.59497743]
[1736850275764,0.3091,3235.9,3235.8,2.43597743]
[1736850276068,0.3091,3236.0,3235.8,40.8]
[1736850276864,3.3728,3236.4,3235.8,40.8]
[1736850277059,0.30909,3236.1,3235.8,40.8]
[1736850277461,0.30909,3236.1,3235.8,41.10911]
[1736850279064,0.3091,3235.9,3235.8,40.8]
[1736850279569,0.3091,3235.9,3235.8,40.81137733]
[1736850280277,0.3091,3235.9,3235.8,0.01137733]
[1736850281171,0.30909,3235.8,3235.7,3.2078]
[1736850281369,2.2185,3235.8,3235.3,3.2078]
[1736850281575,0.30913,3235.4,3235.3,3.2078]
[1736850281771,0.30913,3235.4,3235.3,44.0078]
[1736850281967,0.30913,3235.4,3235.3,3.2078]
[1736850282575,6.41653743,3235.7,3235.0,40.8]
[1736850282770,0.30915,3235.1,3235.0,40.8]
[1736850287877,0.30919,3234.7,3234.6,2.43597743]
[1736850288272,0.30919,3234.7,3234.6,2.458425]
[1736850289073,0.30919,3234.7,3234.6,43.258425]
[1736850289279,0.30919,3234.7,3234.6,46.47468431]
[1736850294087,3.2078,3235.3,3234.6,46.47468431]
[1736850294286,0.30914,3235.3,3235.2,2.43597743]
[1736850294488,0.30912,3235.5,3235.3,0.30914]
[1736850294693,0.3091,3235.7,3235.5,0.30911]
[1736850294885,0.3091,3235.7,3235.6,2.43597743]
[1736850295491,0.77266,3236.1,3235.6,43.26842916]
[1736850295683,0.3091,3235.7,3235.6,43.26842916]
[1736850298486,0.77266,3236.1,3235.6,43.26842916]
[1736850298689,3.3294,3236.3,3235.6,43.57753916]
[1736850298889,0.3091,3235.7,3235.6,43.57752916]
[1736850299296,4.10202,3236.3,3235.6,43.26842916]
[1736850299590,0.27664827,3235.7,3235.6,43.23597743]
[1736850300582,0.77264,3236.2,3235.6,43.23597743]
[1736850300783,0.3091,3235.7,3235.6,43.23597743]
[1736850300993,0.3091,3235.8,3235.6,43.23597743]
[1736850301291,0.3091,3235.8,3235.6,43.54508743]
[1736850301485,0.77264,3236.2,3235.6,43.23597743]
[1736850301690,0.3091,3235.8,3235.6,43.54508743]
[1736850301888,0.3091,3235.7,3235.6,43.23597743]
[1736850302092,0.3091,3235.8,3235.6,43.54508743]
[1736850302293,0.77264,3236.2,3235.6,43.23597743]
[1736850302491,0.30909,3235.8,3235.6,43.54507743]
[1736850303893,0.77264,3236.2,3235.6,43.23597743]
[1736850304091,0.30909,3235.8,3235.6,43.54508743]
[1736850305192,0.30909,3235.8,3235.6,43.54507743]
[1736850305394,5.64377743,3236.6,3235.7,3.20873743]
[1736850305395,3.2078,3236.6,3235.7,3.20873743]
[1736850305592,0.30904,3236.4,3236.2,0.30905]
[1736850305790,0.30904,3236.3,3236.2,1.105]
[1736850306097,0.30904,3236.3,3236.2,41.905]
[1736850306993,0.30904,3236.3,3236.2,42.21405]
[1736850307498,0.30904,3236.3,3236.2,41.905]
[1736850308790,0.30904,3236.3,3236.2,40.8]
[1736850310498,0.80904,3236.3,3236.2,40.8]
[1736850320209,0.30907,3236.0,3235.9,3.2078]
[1736850320807,2.2275,3236.1,3235.8,5.64377743]
[1736850321002,0.30908,3235.9,3235.8,5.64377743]
[1736850321203,0.30908,3235.9,3235.8,46.44377743]
[1736850321404,0.30908,3235.9,3235.8,46.75286743]
[1736850321805,0.30908,3235.9,3235.8,46.44377743]
[1736850322411,0.30908,3235.9,3235.8,46.75286743]
[1736850323907,0.30908,3235.9,3235.8,46.44377743]
[1736850327318,0.30906,3236.2,3236.1,0.30905]
[1736850328216,0.5,3236.3,3236.0,2.43597743]
[1736850328412,0.5,3236.3,3236.2,3.2078]
[1736850328413,0.80904,3236.3,3236.2,3.2078]
[1736850330326,0.30908,3235.9,3235.8,44.31689]
[1736850330628,0.30908,3235.9,3235.8,44.0078]
[1736850330815,0.30908,3235.9,3235.8,44.31689]
[1736850335523,0.30908,3236.0,3235.9,0.30907]
[1736850338624,0.30908,3235.9,3235.8,3.2078]
[1736850338824,1.38168,3235.9,3235.8,3.2078]
[1736850339532,1.38168,3235.9,3235.1,3.20885743]
[1736850339533,0.30912,3235.5,3235.4,3.2078]
[1736850339735,0.30912,3235.5,3235.4,44.0078]
[1736850340534,0.30912,3235.5,3235.4,41.88069715]
[1736850343244,3.2078,3235.5,3234.2,2.43597743]
[1736850343439,0.30924,3234.2,3234.1,4.2669]
[1736850343639,0.773,3234.7,3233.9,2.43597743]
[1736850343838,0.30927,3234.0,3233.8,1.0591]
[1736850344038,0.30927,3234.0,3233.8,1.36838]
[1736850344238,0.30926,3234.0,3233.9,40.8]
[1736850351443,3.2078,3235.9,3233.9,42.128]
[1736850351647,2.2088,3235.3,3234.6,5.64377743]
[1736850351954,1.0115,3235.2,3235.0,3.2078]
[1736850352549,1.0115,3235.2,3235.1,40.8]
[1736850358454,1.0115,3235.2,3235.1,41.10916]
[1736850359451,3.2078,3236.6,3235.2,0.77287]
[1736850359656,6.3682,3236.6,3236.3,2.43597743]
[1736850359856,6.67722,3236.6,3236.3,2.74501743]
[1736850360054,6.3682,3236.6,3236.4,40.8]
[1736850360254,2.1277,3236.6,3236.5,0.30903]
[1736850360455,1.1094,3236.6,3236.3,2.43597743]
[1736850360655,1.1094,3236.6,3236.4,0.30903]
[1736850360856,1.1094,3236.6,3236.5,40.8]
[1736850361258,1.1094,3236.6,3236.5,44.0078]
[1736850361452,0.30899,3236.9,3236.5,44.31683]
[1736850361652,2.1999,3237.0,3236.6,2.43597743]
[1736850361859,0.30899,3236.9,3236.6,2.43597743]
[1736850362162,0.30899,3236.9,3236.6,2.74498743]
[1736850362561,0.30899,3236.9,3236.6,2.43597743]
[1736850363264,0.309,3236.9,3236.6,2.43597743]
[1736850363468,0.30901,3236.7,3236.5,44.0078]
[1736850364152,0.309,3236.8,3236.5,44.0078]
[1736850364461,0.309,3236.8,3236.5,44.31683]
[1736850364859,0.309,3236.8,3236.5,44.0078]
[1736850365768,2.1999,3237.0,3236.5,44.0078]
[1736850365965,0.30901,3236.8,3236.5,44.0078]
[1736850366563,0.30901,3236.7,3236.5,44.0078]
[1736850367270,0.30902,3236.6,3236.5,3.2078]
[1736850367565,2.97239,3237.0,3236.1,3.2078]
[1736850367866,0.30906,3236.2,3236.1,3.2078]
[1736850368266,0.77254,3236.7,3236.1,44.0078]
[1736850368267,0.30905,3236.3,3236.1,44.0078]
[1736850368663,0.77254,3236.7,3236.1,44.0078]
[1736850368865,0.30906,3236.3,3236.1,44.0078]
[1736850369172,0.30906,3236.2,3236.1,44.0078]
[1736850369375,0.30906,3236.3,3236.1,44.0078]
[1736850370573,0.30906,3236.2,3236.1,44.0078]
[1736850374361,1.0874,3236.4,3236.2,0.30906]
[1736850374565,3.2078,3236.7,3236.3,2.43597743]
[1736850374775,0.30904,3236.5,3236.3,2.43597743]
[1736850375268,3.2078,3236.7,3236.3,2.43597743]
[1736850375573,0.30903,3236.6,3236.4,0.30904]
[1736850375774,3.2078,3236.7,3236.3,2.43597743]
[1736850375971,0.30903,3236.7,3236.4,0.30904]
[1736850376170,2.0206,3236.9,3236.5,40.8]
[1736850376466,0.30903,3236.6,3236.5,40.8]
[1736850377671,0.30903,3236.6,3236.5,44.0078]
[1736850378573,0.30903,3236.7,3236.5,44.0078]
[1736850378774,2.0206,3236.9,3236.5,44.0078]
[1736850379174,0.30902,3236.8,3236.6,2.74500743]
[1736850379973,0.30902,3236.8,3236.6,2.43597743]
[1736850380179,0.30902,3236.7,3236.6,2.43597743]
[1736850381480,0.30902,3236.7,3236.5,44.31684]
[1736850381671,0.30903,3236.6,3236.5,44.0078]
[1736850382078,2.79313,3236.9,3236.3,2.43597743]
[1736850382270,2.79313,3236.9,3236.2,1.0193]
[1736850382579,2.79313,3236.9,3236.1,3.2078]
[1736850382580,0.30907,3236.2,3236.1,3.2078]
[1736850383181,0.30907,3236.2,3236.1,44.0078]
[1736850385876,0.30907,3236.2,3236.1,40.8]
[1736850392488,2.0833,3236.3,3235.9,3.2078]
[1736850392685,0.30909,3236.0,3235.9,3.2078]
[1736850393281,2.0833,3236.3,3235.9,3.5169]
[1736850393481,0.30909,3236.1,3235.9,3.5169]
[1736850394087,0.30909,3236.1,3236.0,40.8]
[1736850395888,1.0492,3236.6,3236.0,43.23597743]
[1736850396093,1.0492,3236.6,3236.3,3.2078]
[1736850396289,0.30905,3236.4,3236.3,3.2078]
[1736850398393,0.30908,3236.2,3236.0,43.54506743]
[1736850399998,0.30909,3236.1,3236.0,40.8]
[1736850400298,2.29769,3236.1,3236.0,43.23597743]
[1736850400592,2.29769,3236.1,3236.0,40.8]
[1736850401789,4.73366743,3236.1,3236.0,40.8]
[1736850401991,4.42457743,3236.1,3235.5,3.2078]
[1736850402291,0.30913,3235.6,3235.5,3.2078]
[1736850402491,0.30913,3235.6,3235.5,44.0078]
[1736850407700,0.30912,3235.8,3235.6,0.30913]
[1736850407909,1.0202,3236.0,3235.5,3.2078]
[1736850408401,0.30913,3235.7,3235.5,3.51694]
[1736850408597,0.30912,3235.8,3235.5,3.2078]
[1736850408795,0.30911,3235.9,3235.6,0.30913]
[1736850408993,0.30911,3235.9,3235.7,40.8]
[1736850409200,1.0202,3236.0,3235.7,40.8]
[1736850409400,0.30911,3235.8,3235.7,40.8]
[1736850410496,0.30911,3235.8,3235.7,44.0078]
[1736850411304,1.9886,3236.1,3235.9,0.3091]
[1736850411305,0.30909,3236.1,3235.9,0.3091]
[1736850411509,2.75034045,3236.5,3235.8,1.0836]
[1736850411803,0.30911,3235.9,3235.7,44.31692]
[1736850411997,0.30911,3235.8,3235.7,44.31692]
[1736850412495,0.30911,3235.8,3235.7,44.0078]
[1736850412701,0.30911,3235.8,3235.7,3.2078]
[1736850412894,3.43921,3235.8,3235.7,3.2078]
[1736850413394,3.20868743,3236.2,3235.7,3.2078]
[1736850413601,0.30911,3235.8,3235.7,3.2078]
[1736850414102,0.30911,3235.8,3235.7,44.0078]
[1736850416897,15.95136486,3235.8,3234.0,3.2078]
[1736850417096,2.43597743,3234.5,3234.0,2.8982]
[1736850417302,2.74521743,3234.5,3234.0,2.8982]
[1736850417599,5.62797743,3234.8,3234.1,41.8736]
[1736850418011,0.30923,3234.7,3234.2,0.30927]
[1736850418304,0.30923,3234.7,3234.2,0.30926]
[1736850418508,1.38491,3234.8,3234.3,0.30925]
[1736850418799,0.30923,3234.7,3234.3,0.30925]
[1736850419002,0.30922,3234.7,3234.2,0.30926]
[1736850419303,0.30924,3234.6,3234.2,0.30926]
[1736850419595,0.30924,3234.5,3234.2,0.30926]
[1736850419894,0.30925,3234.4,3234.2,0.30926]
[1736850420297,0.30926,3234.3,3234.1,42.18287]
[1736850420497,0.30925,3234.4,3234.2,0.30927]
[1736850421206,1.0757,3234.8,3234.2,0.30927]
[1736850421405,1.0757,3234.8,3234.5,3.2078]
[1736850421593,0.30923,3234.6,3234.5,3.2078]
[1736850423506,0.30923,3234.6,3234.5,44.0078]
[1736850425103,1.0142,3235.1,3234.5,44.0078]
[1736850425303,0.30921,3234.8,3234.6,0.30923]
[1736850425606,0.30922,3234.8,3234.5,44.31703]
[1736850425801,0.30922,3234.7,3234.5,44.0078]
[1736850426000,0.30922,3234.7,3234.5,44.31704]
[1736850426404,1.0142,3235.1,3234.5,44.31704]
[1736850426708,0.30922,3234.7,3234.5,44.0078]
[1736850427008,0.30923,3234.6,3234.5,44.0078]
[1736850432902,2.74520743,3234.6,3234.5,44.0078]
[1736850433808,2.74520743,3234.6,3234.5,40.8]
[1736850434210,0.30928,3234.1,3234.0,3.2078]
[1736850434920,1.32698,3234.1,3234.0,3.2078]
[1736850435119,1.32698,3234.1,3234.0,44.0078]
[1736850440719,1.32698,3234.1,3234.0,40.8]
[1736850442009,4.53478,3234.1,3234.0,40.8]
[1736850446824,4.53478,3234.1,3233.4,3.2078]
[1736850446825,0.30933,3233.5,3233.4,3.2078]
[1736850447520,0.30933,3233.5,3233.4,44.0078]
[1736850447721,1.41293,3233.5,3233.4,44.0078]
[1736850448927,1.41293,3233.5,3233.4,40.8]
[1736850451514,1.41293,3233.5,3232.7,3.2078]
[1736850451515,0.3094,3232.8,3232.7,3.2078]
[1736850452526,0.3094,3232.8,3232.7,44.0078]
[1736850454832,0.77343,3233.2,3232.7,44.0078]
[1736850455027,3.2078,3233.7,3232.9,2.43597743]
[1736850455234,3.2078,3233.7,3233.1,3.51717]
[1736850455438,0.30935,3233.4,3233.1,3.2078]
[1736850455731,3.1621,3233.9,3233.1,3.2078]
[1736850455732,0.30936,3233.3,3233.1,3.51717]
[1736850456129,0.7733,3233.7,3233.1,3.51717]
[1736850456332,0.30936,3233.2,3233.1,3.51717]
[1736850457134,2.43597743,3234.3,3233.1,8.2078]
[1736850457339,0.77316,3234.3,3233.6,3.2078]
[1736850457635,0.30931,3233.8,3233.7,1.075]
[1736850457930,0.30931,3233.8,3233.7,41.875]
[1736850458335,0.77316,3234.3,3233.7,41.875]
[1736850458525,0.30928,3234.1,3234.0,3.2078]
[1736850458728,0.30928,3234.2,3234.0,3.51708]
[1736850458927,0.30927,3234.2,3234.0,3.51708]
[1736850459131,0.30928,3234.1,3234.0,3.51708]
[1736850459521,0.30928,3234.1,3234.0,3.2078]
[1736850459927,0.30928,3234.1,3234.0,3.51709]
[1736850460128,0.30928,3234.1,3234.0,3.2078]
[1736850463537,0.30928,3234.1,3234.0,3.51709]
[1736850464337,0.30928,3234.2,3234.1,0.30927]
[1736850465325,0.30928,3234.2,3234.1,41.10928]
[1736850466538,0.30928,3234.2,3234.1,40.8]
[1736850467736,0.30928,3234.2,3234.0,3.2078]
[1736850467737,3.6742,3234.2,3234.0,3.2078]
[1736850467940,0.30928,3234.1,3234.0,3.2078]
[1736850468842,0.30928,3234.1,3234.0,40.8]
[1736850472151,0.80928,3234.1,3234.0,40.8]
[1736850472348,1.09241971,3234.1,3234.0,40.8]
[1736850475754,0.30932,3233.7,3233.6,3.2078]
[1736850476248,0.30932,3233.7,3233.6,44.0078]
[1736850478051,0.30932,3233.7,3233.6,3.2078]
[1736850478757,0.30935,3233.3,3233.2,3.2078]
[1736850478953,2.43597743,3233.1,3232.6,3.2078]
[1736850479153,0.30941,3232.7,3232.6,3.2078]
[1736850480760,0.80941,3232.7,3232.6,3.2078]
[1736850480955,0.30948,3232.1,3232.0,3.2078]
[1736850484249,0.30951,3231.7,3231.6,3.2078]
[1736850485862,0.30955,3231.3,3231.2,3.51735]
[1736850486655,0.5,3231.7,3231.2,3.2078]